[Event "Budapest IM-A ONE WEEK Feb 2024"]
[Site "Budapest"]
[Date "2024.02.28"]
[Round "4.3"]
[White "Ulasevich, Sergei"]
[Black "Foldes, Marton Gabor"]
[Result "1-0"]
[ECO "B22"]
[WhiteElo "2261"]
[BlackElo "2119"]
[Annotator "TA"]
[PlyCount "69"]
[EventDate "2024.02.25"]
[EventType "tourn"]
[EventCountry "HUN"]
[SourceTitle "playchess.com"]
[Source "ChessBase"]
[SourceQuality "1"]
[TimeControl "5400+30"]

{[%evp 17,69,23,22,9,0,11,6,10,0,0,0,0,28,6,19,13,41,47,67,66,63,64,69,29,95,99,100,93,94,102,96,102,104,102,106,96,96,96,131,131,370,387,385,364,562,562,552,557,556,554,578,589,589,578]} 1. e4 {[%emt 0:00:04]} c5 {[%emt 0:00:10]} 2. c3 {[%emt 0:00:22]} Nf6 {[%emt 0:00:07]} 3. e5 {[%emt 0:00:05]} Nd5 {[%emt 0:00:05]} 4. Nf3 {[%emt 0:00:04]} e6 {[%emt 0:00:12]} 5. d4 {[%emt 0:00:27]} cxd4 {[%emt 0:00:06]} 6. cxd4 {[%emt 0:00:05]} d6 {[%emt 0:00:05]} 7. Bc4 {[%emt 0:00:23]} Nb6 {[%emt 0:00:09]} 8. Bd3 {[%emt 0:00:25]} Nc6 {[%emt 0:00:17][%cal Bb8c6,Bc6b4,Bb4d3][%mdl 32]} 9. O-O {[%emt 0:00:24]} Nb4 {[%emt 0:00:16]} 10. Be4 {[%emt 0:00:12]} d5 {[%emt 0:07:37]} 11. Bd3 {[%emt 0:00:07]} Nxd3 {[%emt 0:02:29]} 12. Qxd3 {[%emt 0:00:11] The position is equal.} Be7 {[%emt 0:01:18]} 13. Nc3 {[%emt 0:00:48][%cal Bb1c3,Bc3e2,Be2f4][%mdl 32]} Bd7 {[%emt 0:11:28]} 14. b3 {[%emt 0:00:09]} Rc8 {[%emt 0:08:35]} 15. Bd2 {[%emt 0:00:25]} O-O {[%emt 0:05:06]} 16. Ne2 {[%emt 0:02:43]} Qe8 {[%emt 0:09:04]} 17. a4 {[%emt 0:00:47]} f5 {[%emt 0:01:36]} 18. h4 {[%emt 0:06:11]} Na8 {[%emt 0:06:47]} 19. Nf4 {[%emt 0:05:38]} Nc7 {[%emt 0:01:05]} 20. Ng5 {[%emt 0:00:49]} Bxg5 {[%emt 0:11:25]} (20... h6 $11 {remains equal.} 21. Nf3 Na6) 21. hxg5 $16 {[%emt 0:00:05] Hoping for Bb4.} g6 {[%emt 0:00:45] Black is weak on the dark squares} 22. Bb4 {[%emt 0:14:06]} Rf7 {[%emt 0:00:24]} 23. Rfc1 {[%emt 0:03:12]} Qd8 {[%emt 0:08:19]} 24. Qg3 {[%emt 0:00:39] White has more active pieces.} Ne8 {[%emt 0:01:12]} 25. Bc5 $36 {[%emt 0:03:13][%mdl 2048] Black is under strong pressure.} b6 {[%emt 0:01:25]} 26. Ba3 {[%emt 0:00:29]} Rxc1+ {[%emt 0:01:30]} 27. Rxc1 {[%emt 0:00:06]} Bc8 {[%emt 0:02:23]} 28. Bd6 {[%emt 0:03:27]} Nxd6 $2 {[%emt 0:07:40] This move loses the game for Black.} (28... Bd7 $16 {was worth a try.} 29. Rc3 Rg7) 29. exd6 $18 {[%emt 0:00:13]} Rf8 {[%emt 0:00:11]} 30. Rc7 {[%emt 0:06:35] Strongly threatening Qh3.} Qxd6 {[%emt 0:01:43] [#]} (30... Rf7 $142 31. Rc1 Rf8) 31. Rg7+ $3 {[%emt 0:00:22][%mdl 512] White is clearly winning.} Kxg7 {[%emt 0:01:32] [#]} 32. Nh5+ $1 {[%emt 0:00:08][%mdl 512]} gxh5 {[%emt 0:00:05]} 33. Qxd6 {[%emt 0:00:03]} Rf7 {[%emt 0:00:38]} 34. Qb8 {[%emt 0:00:54]} Ba6 {[%emt 0:00:40]} 35. Qe5+ {[%emt 0:00:16] Weighted Error Value: White=0.05 (flawless) /Black=0.25 (precise) .  Loses game:     	---       	Black=1      Mistake:       	---       	Black=2      Inaccurate:     	White=1     	Black=3      OK:         	White=11    	Black=12     Best:        	---       	Black=3      Brilliant:      	White=2     	---} 1-0

[Event "Budapest IM-A ONE WEEK Feb 2024"]
[Site "Budapest"]
[Date "2024.02.28"]
[Round "4.4"]
[White "Toth-Goczo, Melinda"]
[Black "Dudognon, Thibault"]
[Result "0-1"]
[ECO "D25"]
[WhiteElo "2201"]
[BlackElo "2388"]
[Annotator "TA"]
[PlyCount "36"]
[EventDate "2024.02.25"]
[EventType "tourn"]
[EventCountry "HUN"]
[SourceTitle "playchess.com"]
[Source "ChessBase"]
[SourceQuality "1"]
[TimeControl "5400+30"]

{[%evp 12,36,8,0,0,0,0,1,30,18,1,0,0,-50,-64,-202,-201,-492,-504,-630,-627,-626,-608,-616,-593,-1266,-1246]} 1. d4 {[%emt 0:00:03]} d5 {[%emt 0:00:38]} 2. c4 {[%emt 0:00:04]} dxc4 {[%emt 0:00:05]} 3. Nf3 {[%emt 0:00:04]} Nf6 {[%emt 0:00:08]} 4. e3 {[%emt 0:00:14]} Bg4 {[%emt 0:00:30]} 5. Bxc4 {[%emt 0:01:17]} e6 {[%emt 0:00:04]} 6. Qb3 {[%emt 0:11:20]} Bxf3 {[%emt 0:00:17]} 7. gxf3 {[%emt 0:00:04][%cal Ob1c3]} c5 {[%emt 0:00:15]} 8. Nc3 {[%emt 0:35:25] d5 would now be deadly.} (8. Qxb7 $5 Nbd7 $8 9. dxc5 $11) 8... cxd4 {[%emt 0:05:15]} 9. exd4 {[%emt 0:02:35]} Bd6 {[%emt 0:04:31] The position is equal.} 10. Qxb7 {[%emt 0:12:28]} Nbd7 {[%emt 0:00:10]} 11. Ne4 {[%emt 0:02:02]} Nxe4 {[%emt 0:00:21]} 12. fxe4 {[%emt 0:04:35]} (12. Qxe4 $11 Rc8 13. Bd3) 12... Rb8 $15 {[%emt 0:00:09]} 13. Qxa7 {[%emt 0:00:24] [#]} ({White should play} 13. Qa6 $15 Qh4 14. Bd3 (14. Qxd6 Qxe4+ 15. Kd2 Rb6 $11) 14... Bb4+ 15. Kf1) 13... Qh4 $1 $19 {[%emt 0:01:11][%csl LRe4,LRh2]} 14. Rg1 $2 {[%emt 0:12:22]} (14. Be2 Qxe4 (14... Bxh2 $2 {loses.} 15. Qa3 $18) 15. f3 Qh4+ 16. Kf1) 14... Qxe4+ {[%emt 0:03:47] Black is clearly winning.} 15. Kf1 {[%emt 0:00:22]} Ra8 {[%emt 0:02:56]} 16. Rg4 {[%emt 0:02:07] Threatens to win with Qxd7+.} Qh1+ {[%emt 0:00:08]} (16... Qxg4 17. Qxa8+ Ke7 18. Qxh8 $11) 17. Rg1 {[%emt 0:00:16] [#] Hoping for Qxd7+.} Qf3 {[%emt 0:01:44]} (17... Qxh2 $2 {too greedy.} 18. Qxa8+ Bb8 19. Qg2 $18 (19. Rxg7 Kf8 $18)) 18. Be2 {[%emt 0:00:26]} Qh3+ {[%emt 0:00:07] Black took control after the opening.   Weighted Error Value: White=1.07/Black=0.07 (flawless) .  Mistake:       	White=3     	---        Inaccurate:     	---       	Black=1      OK:         	White=1     	Black=2      Best:        	---       	Black=4      Strong:       	---       	Black=1} ({Weaker is} 18... Rxa7 19. Bxf3 g6 20. Kg2 $16) 0-1

[Event "Budapest IM-A ONE WEEK Feb 2024"]
[Site "Budapest"]
[Date "2024.02.28"]
[Round "4.5"]
[White "Horvath, David"]
[Black "Papp, Sarah"]
[Result "1/2-1/2"]
[ECO "A05"]
[WhiteElo "2330"]
[BlackElo "2279"]
[Annotator "TA"]
[PlyCount "81"]
[EventDate "2024.02.25"]
[EventType "tourn"]
[EventCountry "HUN"]
[SourceTitle "playchess.com"]
[Source "ChessBase"]
[SourceQuality "1"]
[TimeControl "5400+30"]

{[%evp 9,81,19,29,10,29,22,13,8,13,13,32,0,12,0,0,-9,-7,-17,26,33,29,25,22,19,32,0,0,0,0,-5,22,-21,-41,-66,-55,-393,-350,-386,-359,-2197,-8,-8,-8,0,-8,-8,-7,-10,-14,-4,-8,-12,0,0,0,0,0,0,0,0,0,0,0,0,0,0,0,0,0,0,449,0,0,0]} 1. Nf3 {[%emt 0:00:02]} Nf6 {[%emt 0:00:19]} 2. c4 {[%emt 0:00:04]} e6 {[%emt 0:00:11]} 3. b3 {[%emt 0:00:06]} d5 {[%emt 0:00:12]} 4. Bb2 {[%emt 0:00:06]} c5 {[%emt 0:00:26]} 5. cxd5 {[%emt 0:00:12]} exd5 {[%emt 0:00:18]} 6. g3 {[%emt 0:00:05]} Nc6 {[%emt 0:00:49]} 7. Bg2 {[%emt 0:00:05]} Bg4 {[%emt 0:04:27]} 8. O-O {[%emt 0:11:52]} d4 {[%emt 0:00:13]} 9. Na3 {[%emt 0:03:21]} Be7 {[%emt 0:02:59]} 10. h3 {[%emt 0:03:54]} Bh5 {[%emt 0:01:03][%cal Bg4h5,Bh5g6,Bg6e4][%mdl 32]} 11. e3 {[%emt 0:00:07]} O-O {[%emt 0:02:43]} 12. g4 {[%emt 0:20:49]} Bg6 {[%emt 0:00:33]} 13. Nc4 {[%emt 0:06:02]} h5 {[%emt 0:09:29]} 14. Nfe5 {[%emt 0:06:41]} Nxe5 {[%emt 0:01:22]} 15. Nxe5 {[%emt 0:00:06]} Be4 {[%emt 0:00:43]} 16. exd4 {[%emt 0:11:39]} cxd4 {[%emt 0:08:06]} 17. Re1 {[%emt 0:01:33]} Bxg2 {[%emt 0:03:39]} 18. Kxg2 {[%emt 0:00:03]} Rc8 {[%emt 0:14:16]} 19. Nd3 {[%emt 0:12:34] Repels Bb4} Rc6 {[%emt 0:08:00]} 20. Ne5 {[%emt 0:09:03]} Re6 {[%emt 0:04:21] Strongly threatening ...Bd6.} 21. Qf3 {[%emt 0:01:31]} Bb4 $1 {[%emt 0:02:20]} 22. Nxf7 $2 {[%emt 0:06:08][%mdl 8192]} Rxf7 $19 {[%emt 0:09:02]} (22... Kxf7 23. Rxe6 Kxe6 24. Re1+ Kf7 25. g5 Bxd2 26. Re5 $11) 23. Rxe6 {[%emt 0:00:06] Threatens to win with Rae1.} Nxg4 $1 {[%emt 0:00:06]} 24. Qe4 {[%emt 0:00:10] [#]} (24. Rae1 Qh4 (24... Bxd2 25. Re8+ Kh7 26. Qe4+ Kh6 27. Rxd8 Rxf2+ 28. Kg1 Bb4 29. hxg4 hxg4 30. Kxf2) 25. Re8+ Bf8 26. Rxf8+ Rxf8 27. Re8 Rxe8 28. Qd5+ Kh8 29. Qxd4 Qxf2+ 30. Qxf2 Nxf2 31. Kxf2) 24... Rxf2+ $2 {[%emt 0:01:16]} (24... Qh4 $1 $19 {[%cal Rh4f2]} 25. Re8+ Bf8 26. Rxf8+ Rxf8 27. Qd5+ Kh7 (27... Kh8 $2 28. Qf3 $19) 28. Qe4+ Kh8) 25. Kg1 $132 {[%emt 0:00:04][%mdl 2048] [#] Re8+ would now be deadly. White is fighting back. Chess con chili.} Qh4 $1 {[%emt 0:00:15]} 26. Re8+ {[%emt 0:00:17]} Bf8 {[%emt 0:00:14]} 27. Rxf8+ $1 {[%emt 0:02:57]} Kxf8 {[%emt 0:02:07]} 28. Ba3+ {[%emt 0:01:19]} Kg8 {[%emt 0:00:21]} 29. Qe8+ {[%emt 0:01:38]} Kh7 {[%emt 0:00:02] ( -> ...Qg3+)} 30. Qe4+ {[%emt 0:00:05]} Kh6 {[%emt 0:00:13]} 31. Bd6 {[%emt 0:00:05] Inhibits Qg3+. And now Bf4+ would win.} Qxh3 {[%emt 0:05:32]} 32. Bf4+ {[%emt 0:00:08]} g5 {[%emt 0:04:24]} 33. Qe6+ {[%emt 0:00:09]} Kh7 $1 {[%emt 0:02:29][%csl Gf2][%cal Rh3g2]} 34. Qd7+ {[%emt 0:02:42]} Kh6 {[%emt 0:00:53][%csl Gf2][%cal Rh3g2]} (34... Kg6 $5 35. Qe6+ $8 Kg7 36. Qe7+ (36. Be5+ Kf8 $14) 36... Kh6 37. Qe6+ (37. Qf8+ Kg6 $11) 37... Kh7 38. Qe7+ Kg6 39. Qxg5+ Kh7 40. Qf5+ Kg7 41. Qd7+ (41. Be5+ Kh6 $11) 41... Kg6 42. Qe6+ Kg7 43. Qd7+ Kg6 44. Qe6+ Kg7 45. Qe7+ Kg8 46. Qe8+ Kg7 47. Qe7+ Kg8 48. Qe6+ Kg7 $11) 35. Qe6+ {[%emt 0:00:54]} Kh7 $1 {[%emt 0:00:04][%csl Gf2][%cal Rh3g2]} 36. Qe7+ {[%emt 0:01:16]} Kh6 {[%emt 0:01:46][%csl Gf2][%cal Rh3g2]} 37. Qxg5+ Kh7 {[%csl Gf2][%cal Rh3g2]} 38. Qf5+ {[%emt 0:00:37]} Kg7 $1 {[%emt 0:00:23][%csl Gf2][%cal Rh3g2]} 39. Qg5+ {[%emt 0:00:54]} Kf8 $2 {[%emt 0:04:49][%mdl 8192]} (39... Kh7 $11 40. Qe7+ Kg8 41. Qg5+ Kh7) 40. Qf5+ $2 {[%emt 0:00:26]} (40. Qd8+ $18 Kf7 41. Qd5+ Kf8 42. Re1 (42. Bh6+ Nxh6 43. Qd6+ Kf7 $11) 42... Rxf4 43. Qd6+ (43. Qxb7 $2 Qh2#) 43... Kg7 44. Qxf4) 40... Kg7 $1 {[%emt 0:00:06][%csl Gf2][%cal Rh3g2]} 41. Qg5+ {[%emt 0:00:19] White used his chance.   Weighted Error Value: White=0.47/Black=0.30.  Loses game:     	White=1     	Black=1      Missed win:     	White=1     	Black=1      Mistake:       	White=1     	---        Inaccurate:     	White=2     	Black=2      OK:         	White=11    	Black=11     Best:        	White=7     	Black=3      Strong:       	White=1     	Black=6} 1/2-1/2

[Event "Budapest IM-A ONE WEEK Feb 2024"]
[Site "Budapest"]
[Date "2024.02.28"]
[Round "5.1"]
[White "Papp, Sarah"]
[Black "Meessen, Rudolf"]
[Result "1-0"]
[ECO "B07"]
[WhiteElo "2279"]
[BlackElo "2169"]
[Annotator "RC"]
[PlyCount "153"]
[EventDate "2024.02.25"]
[EventType "tourn"]
[EventCountry "HUN"]
[SourceTitle "playchess.com"]
[Source "ChessBase"]
[SourceQuality "1"]
[TimeControl "5400+30"]

1. e4 {[%emt 0:00:03]} d6 {[%emt 0:00:19]} 2. d4 {[%emt 0:00:07]} Nf6 {[%emt 0:00:16]} 3. Nc3 {[%emt 0:00:06]} e5 {[%emt 0:00:03]} 4. Nf3 {[%emt 0:00:06]} exd4 {[%emt 0:00:14]} 5. Nxd4 {[%emt 0:00:05]} Be7 {[%emt 0:00:03]} 6. Bf4 {[%emt 0:00:10]} O-O {[%emt 0:00:09]} 7. Qd2 {[%emt 0:00:05]} Nc6 {[%emt 0:00:26]} 8. O-O-O {[%emt 0:00:16]} Nxd4 {[%emt 0:00:07]} 9. Qxd4 {[%emt 0:00:04]} Be6 {[%emt 0:00:16]} 10. f3 {[%emt 0:00:27]} a6 {[%emt 0:00:08]} 11. g4 {[%emt 0:00:11]} b5 {[%emt 0:00:19]} 12. h4 {[%emt 0:01:12]} c5 {[%emt 0:00:06]} 13. Qe3 {[%emt 0:03:27]} b4 {[%emt 0:00:05]} 14. Na4 {[%emt 0:00:14]} Qc7 {[%emt 0:01:08]} 15. b3 {[%emt 0:01:27]} Qc6 {[%emt 0:02:04]} 16. g5 {[%emt 0:18:08]} Nh5 {[%emt 0:02:31]} 17. Bh2 {[%emt 0:01:55]} c4 {[%emt 0:09:02]} 18. Rg1 {[%emt 0:03:08]} cxb3 {[%emt 0:02:53]} 19. axb3 {[%emt 0:00:05]} Rac8 {[%emt 0:04:01]} 20. Rd2 {[%emt 0:01:38]} d5 {[%emt 0:03:19]} 21. Be2 {[%emt 0:07:13]} d4 {[%emt 0:00:50]} 22. Qd3 {[%emt 0:00:14]} f5 {[%emt 0:05:26]} 23. gxf6 {[%emt 0:10:49]} Rxf6 {[%emt 0:01:39]} 24. Kb1 {[%emt 0:01:07]} Rd8 {[%emt 0:16:01]} 25. Be5 {[%emt 0:12:11]} Nf4 {[%emt 0:04:24]} 26. Qxa6 {[%emt 0:01:27]} Qxa6 {[%emt 0:05:09]} 27. Bxa6 {[%emt 0:00:01]} Rg6 {[%emt 0:02:38]} 28. Rgd1 {[%emt 0:07:07]} Bf7 {[%emt 0:01:58]} 29. Bb5 {[%emt 0:04:15]} Ne6 {[%emt 0:00:28]} 30. f4 {[%emt 0:07:43]} Rg4 {[%emt 0:04:24]} 31. f5 {[%emt 0:03:29]} Nf8 {[%emt 0:00:46]} 32. Rxd4 {[%emt 0:01:16]} Rxd4 {[%emt 0:00:05]} 33. Rxd4 {[%emt 0:00:04]} Rxh4 {[%emt 0:00:12]} 34. Bc6 {[%emt 0:03:01]} h5 {[%emt 0:00:35]} 35. Rd3 {[%emt 0:01:01]} Rh1+ {[%emt 0:01:03]} 36. Kb2 {[%emt 0:00:11]} h4 {[%emt 0:00:14]} 37. Nb6 {[%emt 0:00:30]} h3 {[%emt 0:01:43]} 38. Rg3 {[%emt 0:01:39]} g6 {[%emt 0:01:03]} 39. Nd5 {[%emt 0:05:54]} Bxd5 {[%emt 0:02:23]} 40. Bxd5+ {[%emt 0:00:10]} Kh7 {[%emt 0:00:04]} 41. Bd4 {[%emt 0:01:44]} Bh4 {[%emt 0:00:40]} 42. Rg1 {[%emt 0:01:46]} Rxg1 43. Bxg1 {[%emt 0:00:02]} Bf6+ {[%emt 0:02:16]} 44. e5 {[%emt 0:01:56]} Bxe5+ {[%emt 0:00:24]} 45. Kc1 {[%emt 0:00:04]} g5 {[%emt 0:03:56]} 46. f6 {[%emt 0:04:51]} Kg6 {[%emt 0:00:01]} 47. Bc5 {[%emt 0:00:28]} Nd7 {[%emt 0:15:26]} 48. f7 {[%emt 0:00:50]} Bg7 {[%emt 0:03:41]} 49. Bxb4 {[%emt 0:00:26]} g4 {[%emt 0:00:13]} 50. Bd6 {[%emt 0:00:21]} Kf5 {[%emt 0:00:28]} 51. Kd2 {[%emt 0:00:34]} Be5 {[%emt 0:00:55]} 52. f8=Q+ {[%emt 0:00:09]} Nxf8 {[%emt 0:00:06]} 53. Bxf8 {[%emt 0:00:04]} g3 {[%emt 0:00:28]} 54. Ke2 {[%emt 0:01:08]} Bd4 {[%emt 0:00:43]} 55. Kf1 {[%emt 0:00:18]} Ke5 {[%emt 0:01:54]} 56. Bb7 {[%emt 0:00:05]} Be3 {[%emt 0:00:08]} 57. Bg7+ {[%emt 0:00:22]} Kd6 {[%emt 0:00:52]} 58. Bc3 {[%emt 0:00:12]} Bc5 {[%emt 0:01:01]} 59. Be1 {[%emt 0:00:35]} Kc7 {[%emt 0:00:15]} 60. Bf3 {[%emt 0:00:14]} Bd6 {[%emt 0:00:04]} 61. Bd2 {[%emt 0:00:54]} Kb6 {[%emt 0:00:19]} 62. Be3+ {[%emt 0:01:00]} Kb5 {[%emt 0:00:01]} 63. Bg4 {[%emt 0:00:24]} h2 {[%emt 0:00:32]} 64. Bf3 {[%emt 0:00:45]} Kb4 {[%emt 0:00:07]} 65. Bd4 {[%emt 0:00:17]} Bf4 {[%emt 0:00:16]} 66. Ke2 {[%emt 0:00:11]} Bd6 {[%emt 0:00:22]} 67. Kd3 {[%emt 0:00:06]} Bf4 {[%emt 0:00:26]} 68. Bd5 {[%emt 0:00:58]} Bd6 {[%emt 0:00:24]} 69. Bf6 {[%emt 0:00:47]} Kc5 {[%emt 0:00:07]} 70. Be4 {[%emt 0:00:20]} Kb4 71. Bg7 {[%emt 0:00:05]} Kc5 {[%emt 0:00:21]} 72. c3 {[%emt 0:00:41]} Bf4 {[%emt 0:00:06]} 73. Bf8+ {[%emt 0:00:28]} Kb6 {[%emt 0:00:12]} 74. c4 {[%emt 0:00:17]} Kc7 {[%emt 0:00:04]} 75. b4 {[%emt 0:00:15]} Kd7 {[%emt 0:00:01]} 76. b5 {[%emt 0:00:34]} Ke6 {[%emt 0:00:08]} 77. c5 {[%emt 0:00:38]} 1-0

[Event "Budapest IM-A ONE WEEK Feb 2024"]
[Site "Budapest"]
[Date "2024.02.28"]
[Round "5.2"]
[White "Dudognon, Thibault"]
[Black "Horvath, David"]
[Result "1/2-1/2"]
[ECO "C07"]
[WhiteElo "2388"]
[BlackElo "2330"]
[Annotator "TA"]
[PlyCount "21"]
[EventDate "2024.02.25"]
[EventType "tourn"]
[EventCountry "HUN"]
[SourceTitle "playchess.com"]
[Source "ChessBase"]
[SourceQuality "1"]
[TimeControl "5400+30"]

{[%evp 10,21,18,22,23,12,37,8,6,0,0,0,0,0]} 1. e4 {[%emt 0:00:03]} e6 {[%emt 0:00:05]} 2. d4 {[%emt 0:00:02]} d5 {[%emt 0:00:01]} 3. Nd2 {[%emt 0:00:07]} c5 {[%emt 0:00:03]} 4. exd5 {[%emt 0:00:05]} Qxd5 {[%emt 0:00:05]} 5. Ngf3 {[%emt 0:00:05]} cxd4 {[%emt 0:00:04]} 6. Bc4 {[%emt 0:00:05]} Qd7 {[%emt 0:00:03]} 7. O-O {[%emt 0:00:32][%mdl 1024] White has compensation.} a6 {[%emt 0:00:12]} 8. a4 {[%emt 0:00:45]} Nc6 {[%emt 0:00:07] The position is equal.} 9. Qe2 {[%emt 0:00:58]} Nf6 {[%emt 0:01:29]} 10. Rd1 {[%emt 0:00:06]} Bd6 {[%emt 0:18:52]} 11. Nb3 {[%emt 0:00:19] Not much happened in this game.   Weighted Error Value: White=0.07 (flawless) /Black=0.04 (flawless) .  Inaccurate:     	White=1     	---        OK:         	White=2     	Black=1} 1/2-1/2

[Event "Budapest IM-A ONE WEEK Feb 2024"]
[Site "Budapest"]
[Date "2024.02.28"]
[Round "5.3"]
[White "Foldes, Marton Gabor"]
[Black "Toth-Goczo, Melinda"]
[Result "0-1"]
[ECO "A11"]
[WhiteElo "2119"]
[BlackElo "2201"]
[Annotator "RC"]
[PlyCount "118"]
[EventDate "2024.02.25"]
[EventType "tourn"]
[EventCountry "HUN"]
[SourceTitle "playchess.com"]
[Source "ChessBase"]
[SourceQuality "1"]
[TimeControl "5400+30"]

1. e4 {[%emt 0:00:01]} a6 {[%emt 0:00:09]} 2. d4 {[%emt 0:01:14]} g6 {[%emt 0:00:12]} 3. Nf3 {[%emt 0:04:14]} d6 {[%emt 0:00:23]} 4. Bd3 {[%emt 0:02:08]} Nd7 {[%emt 0:03:39]} 5. O-O {[%emt 0:01:24]} b6 {[%emt 0:03:28]} 6. Re1 {[%emt 0:04:53]} Bb7 {[%emt 0:02:55]} 7. c3 {[%emt 0:08:17]} e6 {[%emt 0:17:04]} 8. Bf4 {[%emt 0:09:53]} Ne7 {[%emt 0:07:38]} 9. Nbd2 {[%emt 0:10:42]} Bg7 {[%emt 0:07:25]} 10. Nf1 {[%emt 0:06:22]} h6 {[%emt 0:06:50]} 11. h4 {[%emt 0:01:21]} Kf8 {[%emt 0:09:46]} 12. Qd2 {[%emt 0:12:06]} Kg8 {[%emt 0:09:42]} 13. Rad1 {[%emt 0:02:50]} Qb8 {[%emt 0:02:49]} 14. Ng3 {[%emt 0:04:42]} c5 {[%emt 0:05:51]} 15. Bc2 {[%emt 0:09:06]} c4 {[%emt 0:02:32]} 16. b3 {[%emt 0:06:16]} cxb3 {[%emt 0:00:40]} 17. Bxb3 {[%emt 0:00:41]} Qc7 {[%emt 0:01:27]} 18. c4 {[%emt 0:01:23]} Kh7 {[%emt 0:03:49]} 19. Rc1 {[%emt 0:02:57]} e5 {[%emt 0:01:32]} 20. Be3 {[%emt 0:02:03]} f5 {[%emt 0:02:48]} 21. exf5 {[%emt 0:01:27]} gxf5 {[%emt 0:00:10]} 22. c5 {[%emt 0:03:51]} bxc5 {[%emt 0:01:46]} 23. dxc5 {[%emt 0:01:13]} Nxc5 {[%emt 0:00:04]} 24. Bxc5 {[%emt 0:00:37]} dxc5 {[%emt 0:00:05]} 25. Be6 {[%emt 0:02:05]} Rhf8 {[%emt 0:05:31]} 26. Qe2 {[%emt 0:01:06]} e4 {[%emt 0:00:37]} 27. Ng5+ {[%emt 0:00:13]} Kh8 {[%emt 0:02:41]} 28. Nf7+ {[%emt 0:00:37]} Rxf7 {[%emt 0:01:26]} 29. Bxf7 {[%emt 0:00:01]} Nc6 {[%emt 0:00:04]} 30. Qh5 {[%emt 0:00:36]} Rf8 {[%emt 0:01:11]} 31. Bd5 {[%emt 0:00:53]} Qe5 {[%emt 0:01:13]} 32. Bxc6 {[%emt 0:00:44]} Bxc6 {[%emt 0:00:01]} 33. Qe2 {[%emt 0:00:28]} Bb5 {[%emt 0:00:13]} 34. Qc2 {[%emt 0:00:17]} Rc8 {[%emt 0:00:15]} 35. Rcd1 {[%emt 0:00:40]} Bd3 {[%emt 0:00:20]} 36. Qa4 {[%emt 0:00:13]} c4 {[%emt 0:00:24]} 37. Qxa6 {[%emt 0:00:23]} Qc5 {[%emt 0:01:36]} 38. Nh5 {[%emt 0:00:21]} Qc6 {[%emt 0:00:37]} 39. Qa7 {[%emt 0:00:15]} Qc7 {[%emt 0:00:08]} 40. Qe3 {[%emt 0:01:03]} Qc5 {[%emt 0:00:24]} 41. Qf4 {[%emt 0:00:21]} Qe5 {[%emt 0:00:11]} 42. Qc1 {[%emt 0:00:31]} c3 {[%emt 0:00:41]} 43. Nf4 {[%emt 0:00:51]} Qb5 {[%emt 0:00:30]} 44. Re3 {[%emt 0:00:37]} c2 {[%emt 0:01:00]} 45. Rde1 Bb2 {[%emt 0:00:25]} 46. Qd2 {[%emt 0:00:43]} Bc3 {[%emt 0:00:25]} 47. Qc1 {[%emt 0:00:05]} Bb2 {[%emt 0:00:19]} 48. Qd2 {[%emt 0:00:06]} c1=Q {[%emt 0:00:12]} 49. Rxc1 {[%emt 0:01:25]} Bxc1 {[%emt 0:00:04]} 50. Qe1 {[%emt 0:00:42]} Bxe3 {[%emt 0:00:02]} 51. Qxe3 {[%emt 0:00:21]} Qc5 {[%emt 0:00:35]} 52. Qg3 {[%emt 0:00:09]} Rg8 {[%emt 0:00:20]} 53. Ng6+ {[%emt 0:00:13]} Kh7 {[%emt 0:00:05]} 54. h5 {[%emt 0:00:04]} Rg7 {[%emt 0:01:25]} 55. Qb8 {[%emt 0:00:18]} Qc1+ {[%emt 0:00:05]} 56. Kh2 {[%emt 0:00:02]} Qc7+ {[%emt 0:00:03]} 57. Qxc7 {[%emt 0:00:24]} Rxc7 {[%emt 0:00:01]} 58. Nf8+ {[%emt 0:00:07]} Kg8 {[%emt 0:00:22]} 59. Ng6 {[%emt 0:00:22]} Ra7 {[%emt 0:00:31]} 0-1